[Event "6th Tulsi Lal Memorial NTCC 2080"]
[Site "Lalitpur"]
[Date "2024.01.10"]
[Round "5.5"]
[White "Silwal, Purushottam"]
[Black "Subedi, Rajan"]
[Result "1/2-1/2"]
[ECO "C42"]
[WhiteElo "1831"]
[BlackElo "1809"]
[Annotator "NA RC COMBH"]
[PlyCount "155"]
[EventDate "2024.01.03"]
[EventType "team-tourn"]
[EventCountry "NEP"]
[SourceTitle "playchess.com"]
[Source "ChessBase"]
[SourceQuality "1"]
[TimeControl "5400+30"]

1. e4 {[%emt 0:01:24]} e5 {[%emt 0:00:23]} 2. Nf3 Nf6 3. Nxe5 {[%emt 0:00:51]} d6 {[%emt 0:00:38]} 4. Nf3 {[%emt 0:00:07]} Nxe4 {[%emt 0:00:21]} 5. Nc3 {[%emt 0:00:47]} Nf6 {[%emt 0:00:57]} 6. d4 {[%emt 0:00:31]} d5 {[%emt 0:00:57]} 7. Be2 {[%emt 0:02:38]} Be7 {[%emt 0:01:26]} 8. O-O {[%emt 0:00:15]} O-O {[%emt 0:00:10]} 9. Bf4 {[%emt 0:01:25]} Bf5 {[%emt 0:02:36]} 10. Ne5 {[%emt 0:03:08]} c6 {[%emt 0:00:56]} 11. Bf3 {[%emt 0:02:31]} Nbd7 {[%emt 0:00:16]} 12. Re1 {[%emt 0:00:20]} h6 {[%emt 0:01:06]} 13. Qd2 {[%emt 0:01:09]} Re8 {[%emt 0:00:54]} 14. a3 {[%emt 0:02:05]} Bf8 {[%emt 0:00:41]} 15. Re2 {[%emt 0:01:01]} Nxe5 {[%emt 0:01:31]} 16. Bxe5 {[%emt 0:03:42]} Nd7 {[%emt 0:03:22]} 17. Bg3 {[%emt 0:01:02]} Qf6 {[%emt 0:00:51]} 18. Rae1 {[%emt 0:01:16]} Be6 {[%emt 0:03:00]} 19. Bg4 {[%emt 0:02:01]} Re7 {[%emt 0:04:11]} 20. Bd6 {[%emt 0:02:50]} Ree8 {[%emt 0:00:49]} 21. Bxe6 {[%emt 0:00:38]} Rxe6 {[%emt 0:00:29]} 22. Rxe6 {[%emt 0:00:16]} fxe6 {[%emt 0:00:07]} 23. Bxf8 {[%emt 0:00:23]} Rxf8 {[%emt 0:00:07]} 24. Qe3 {[%emt 0:03:04]} Re8 {[%emt 0:00:15]} 25. f4 {[%emt 0:00:14]} Qf5 {[%emt 0:01:16]} 26. Re2 {[%emt 0:00:37]} Nf6 {[%emt 0:00:56]} 27. h3 {[%emt 0:00:22]} h5 {[%emt 0:00:10]} 28. Qe5 {[%emt 0:04:02]} Qxe5 {[%emt 0:01:04]} 29. Rxe5 {[%emt 0:00:32]} g6 {[%emt 0:00:21]} 30. Kf2 {[%emt 0:00:41]} Kf7 {[%emt 0:00:22]} 31. Kf3 {[%emt 0:00:26]} Nd7 {[%emt 0:01:01]} 32. Re1 {[%emt 0:00:43]} a6 {[%emt 0:01:02]} 33. Ne2 {[%emt 0:04:37]} c5 {[%emt 0:02:24]} 34. Ke3 {[%emt 0:00:45]} b6 {[%emt 0:00:24]} 35. c3 {[%emt 0:00:48]} Nf6 {[%emt 0:02:03]} 36. Ng1 {[%emt 0:00:50]} cxd4+ {[%emt 0:01:01]} 37. Kxd4 {[%emt 0:00:33]} Rc8 {[%emt 0:00:47]} 38. Nf3 {[%emt 0:00:34]} Rc4+ {[%emt 0:00:15]} 39. Kd3 {[%emt 0:00:12]} Rxf4 {[%emt 0:12:09]} 40. Ng5+ {[%emt 0:00:21]} Kg8 {[%emt 0:00:17]} 41. Rxe6 {[%emt 0:01:35]} Nd7 {[%emt 0:05:20]} 42. Rxg6+ {[%emt 0:00:27]} Kh8 {[%emt 0:00:12]} 43. Rh6+ {[%emt 0:06:10]} Kg8 {[%emt 0:00:12]} 44. Nf3 {[%emt 0:01:02]} Nc5+ {[%emt 0:00:28]} 45. Kd2 {[%emt 0:00:53]} Nd7 {[%emt 0:06:18]} 46. Rd6 {[%emt 0:01:11]} Rf7 {[%emt 0:00:22]} 47. Rxd5 {[%emt 0:00:45]} Nf6 {[%emt 0:00:11]} 48. Rd8+ {[%emt 0:00:41]} Kg7 {[%emt 0:00:23]} 49. Kd3 {[%emt 0:00:31]} Re7 {[%emt 0:03:50]} 50. Rd6 {[%emt 0:00:44]} Nd7 {[%emt 0:01:51]} 51. b4 {[%emt 0:00:55]} Kf7 {[%emt 0:01:14]} 52. Ng5+ {[%emt 0:01:01]} Kg7 {[%emt 0:00:42]} 53. Re6 {[%emt 0:01:11]} Rxe6 {[%emt 0:02:14]} 54. Nxe6+ {[%emt 0:00:09]} Kf6 {[%emt 0:00:04]} 55. Nc7 {[%emt 0:00:59]} h4 {[%emt 0:00:43]} 56. Nxa6 {[%emt 0:00:49]} Ke5 {[%emt 0:00:11]} 57. Ke3 {[%emt 0:00:12]} Kd5 {[%emt 0:00:58]} 58. Nc7+ {[%emt 0:05:45]} Kc4 {[%emt 0:00:10]} 59. Kd2 {[%emt 0:00:23]} Nf6 {[%emt 0:00:43]} 60. a4 {[%emt 0:02:12]} Ne4+ {[%emt 0:02:39]} 61. Kc2 {[%emt 0:02:08]} Nxc3 {[%emt 0:02:15]} 62. a5 $18 {[%emt 0:00:11]} Na2 {[%emt 0:02:15]} 63. axb6 {[%emt 0:01:01]} Nxb4+ {[%emt 0:00:33]} 64. Kd2 {[%emt 0:00:09]} Nc6 {[%emt 0:02:38]} 65. b7 {[%emt 0:00:16]} Nb8 {[%emt 0:00:18]} 66. Ke3 {[%emt 0:00:16]} Kc5 {[%emt 0:00:08]} 67. Kf4 {[%emt 0:00:08]} Kc6 {[%emt 0:00:07]} 68. Ne6 {[%emt 0:00:16]} Kxb7 {[%emt 0:00:05]} 69. Kg4 {[%emt 0:00:09]} Kc6 {[%emt 0:00:12]} 70. Kxh4 {[%emt 0:00:08]} Kd6 {[%emt 0:00:03]} 71. Ng7 {[%emt 0:00:31]} Ke7 {[%emt 0:00:07]} 72. Kg5 {[%emt 0:00:09]} Kf7 {[%emt 0:00:14]} 73. Kh6 {[%emt 0:00:56]} Kg8 {[%emt 0:00:44]} 74. g4 {[%emt 0:00:23]} Nd7 {[%emt 0:00:20]} 75. g5 {[%emt 0:00:34]} Ne5 {[%emt 0:01:08]} 76. g6 {[%emt 0:00:39]} Kh8 {[%emt 0:02:01]} 77. Nh5 {[%emt 0:00:20]} Nf7+ {[%emt 0:00:13]} 78. gxf7 {[%emt 0:01:12]} 1/2-1/2

[Event "6th Tulsi Lal Memorial NTCC 2080"]
[Site "Lalitpur"]
[Date "2024.01.10"]
[Round "5.6"]
[White "Byanjankar, Ratna"]
[Black "Kachhepati, Rajesh"]
[Result "*"]
[ECO "D15"]
[WhiteElo "1739"]
[BlackElo "1747"]
[Annotator "NA RC COMBH"]
[PlyCount "49"]
[EventDate "2024.01.03"]
[EventType "team-tourn"]
[EventCountry "NEP"]
[SourceTitle "playchess.com"]
[Source "ChessBase"]
[SourceQuality "1"]
[TimeControl "5400+30"]

1. d4 d5 {[%emt 0:03:42]} 2. c4 {[%emt 0:01:13]} c6 {[%emt 0:00:40]} 3. Nc3 {[%emt 0:00:56]} Nf6 {[%emt 0:00:12]} 4. Nf3 {[%emt 0:00:32]} Bf5 {[%emt 0:04:08]} 5. cxd5 {[%emt 0:03:27]} Nxd5 {[%emt 0:03:19]} 6. g3 {[%emt 0:04:06]} e6 {[%emt 0:00:21]} 7. Bg2 {[%emt 0:00:14]} Bb4 {[%emt 0:02:35]} 8. Bd2 {[%emt 0:01:01]} Nd7 {[%emt 0:04:51]} 9. O-O {[%emt 0:04:30]} Bxc3 {[%emt 0:02:22]} 10. bxc3 {[%emt 0:00:29]} Be4 {[%emt 0:00:15]} 11. c4 {[%emt 0:01:20]} Ne7 {[%emt 0:01:00]} 12. Bb4 {[%emt 0:00:40]} O-O {[%emt 0:00:09]} 13. Qb3 {[%emt 0:00:50]} Re8 {[%emt 0:00:14]} 14. Bxe7 {[%emt 0:02:05]} Rxe7 {[%emt 0:01:18]} 15. Qxb7 {[%emt 0:01:48]} Ne5 {[%emt 0:15:19]} 16. Qb4 {[%emt 0:03:33]} Nxf3+ {[%emt 0:05:53]} 17. exf3 {[%emt 0:01:47]} Bg6 {[%emt 0:01:34]} 18. f4 {[%emt 0:01:45]} Rb8 {[%emt 0:00:57]} 19. Qc5 {[%emt 0:02:50]} Rc7 {[%emt 0:04:11]} 20. Qe5 {[%emt 0:05:55]} Rb4 {[%emt 0:02:28]} 21. Qc5 {[%emt 0:07:14]} Qb8 {[%emt 0:03:20]} 22. Rfd1 {[%emt 0:06:16]} h6 {[%emt 0:00:44]} 23. Bxc6 {[%emt 0:01:20]} Bc2 {[%emt 0:02:08]} 24. Rdc1 {[%emt 0:00:58]} Be4 {[%emt 0:01:45]} 25. d5 {[%emt 0:00:28]} *

[Event "6th Tulsi Lal Memorial NTCC 2080"]
[Site "Lalitpur"]
[Date "2024.01.10"]
[Round "5.6"]
[White "Byanjankar, Ratna"]
[Black "Chokami, Bikram"]
[Result "1-0"]
[ECO "D15"]
[WhiteElo "1739"]
[BlackElo "1808"]
[Annotator "NA RC COMBH"]
[PlyCount "119"]
[EventDate "2024.01.03"]
[EventType "team-tourn"]
[EventCountry "NEP"]
[SourceTitle "playchess.com"]
[Source "ChessBase"]
[SourceQuality "1"]
[TimeControl "5400+30"]

1. d4 d5 {[%emt 0:03:42]} 2. c4 {[%emt 0:01:13]} c6 {[%emt 0:00:40]} 3. Nc3 {[%emt 0:00:56]} Nf6 {[%emt 0:00:12]} 4. Nf3 {[%emt 0:00:32]} Bf5 {[%emt 0:04:08]} 5. cxd5 {[%emt 0:03:27]} Nxd5 {[%emt 0:03:19]} 6. g3 {[%emt 0:04:06]} e6 {[%emt 0:00:21]} 7. Bg2 {[%emt 0:00:14]} Bb4 {[%emt 0:02:35]} 8. Bd2 {[%emt 0:01:01]} Nd7 {[%emt 0:04:51]} 9. O-O {[%emt 0:04:30]} Bxc3 {[%emt 0:02:22]} 10. bxc3 {[%emt 0:00:29]} Be4 {[%emt 0:00:15]} 11. c4 {[%emt 0:01:20]} Ne7 {[%emt 0:01:00]} 12. Bb4 {[%emt 0:00:40]} O-O {[%emt 0:00:09]} 13. Qb3 {[%emt 0:00:50]} Re8 {[%emt 0:00:14]} 14. Bxe7 {[%emt 0:02:05]} Rxe7 {[%emt 0:01:18]} 15. Qxb7 {[%emt 0:01:48]} Ne5 {[%emt 0:15:19]} 16. Qb4 {[%emt 0:03:33]} Nxf3+ {[%emt 0:05:53]} 17. exf3 {[%emt 0:01:47]} Bg6 {[%emt 0:01:34]} 18. f4 {[%emt 0:01:45]} Rb8 {[%emt 0:00:57]} 19. Qc5 {[%emt 0:02:50]} Rc7 {[%emt 0:04:11]} 20. Qe5 {[%emt 0:05:55]} Rb4 {[%emt 0:02:28]} 21. Qc5 {[%emt 0:07:14]} Qb8 {[%emt 0:03:20]} 22. Rfd1 {[%emt 0:06:16]} h6 {[%emt 0:00:44]} 23. Bxc6 {[%emt 0:01:20]} Bc2 {[%emt 0:02:08]} 24. Rdc1 {[%emt 0:00:58]} Be4 {[%emt 0:01:45]} 25. d5 {[%emt 0:00:28]} Rb2 {[%emt 0:09:26]} 26. Qd4 {[%emt 0:01:34]} f5 {[%emt 0:01:26]} 27. Qe3 {[%emt 0:01:21]} Kh7 {[%emt 0:01:51]} 28. f3 {[%emt 0:00:33]} Bc2 {[%emt 0:02:44]} 29. Qd4 {[%emt 0:08:16]} Qb4 {[%emt 0:06:29]} 30. a3 {[%emt 0:02:44]} Qb3 {[%emt 0:00:28]} 31. Ba4 {[%emt 0:00:56]} Qxa4 {[%emt 0:14:19]} 32. Qxb2 {[%emt 0:02:32]} Rxc4 {[%emt 0:02:37]} 33. dxe6 {[%emt 0:01:24]} Qc6 {[%emt 0:00:52]} 34. e7 {[%emt 0:03:32]} Qc5+ {[%emt 0:02:14]} 35. Kh1 {[%emt 0:02:30]} Ba4 {[%emt 0:01:26]} 36. Rxc4 {[%emt 0:00:30]} Qxc4 {[%emt 0:00:02]} 37. Re1 {[%emt 0:03:22]} Be8 {[%emt 0:00:02]} 38. Qe5 {[%emt 0:00:17]} Qd3 {[%emt 0:00:05]} 39. Qe3 {[%emt 0:00:07]} Qd5 {[%emt 0:00:03]} 40. Kg2 {[%emt 0:00:11]} a5 {[%emt 0:00:07]} 41. g4 {[%emt 0:01:39]} Kg6 {[%emt 0:02:52]} 42. Qe6+ {[%emt 0:00:38]} Qxe6 {[%emt 0:00:01]} 43. Rxe6+ {[%emt 0:00:27]} Kf7 {[%emt 0:00:01]} 44. Re5 {[%emt 0:00:15]} fxg4 {[%emt 0:00:04]} 45. fxg4 {[%emt 0:00:33]} a4 {[%emt 0:00:01]} 46. g5 {[%emt 0:00:23]} hxg5 {[%emt 0:00:08]} 47. fxg5 {[%emt 0:00:20]} Bd7 {[%emt 0:00:00]} 48. h4 {[%emt 0:00:26]} g6 {[%emt 0:00:05]} 49. Kg3 {[%emt 0:00:02]} Bc6 {[%emt 0:00:13]} 50. Kf4 {[%emt 0:00:09]} Bd7 {[%emt 0:00:08]} 51. h5 {[%emt 0:00:56]} Be8 {[%emt 0:00:21]} 52. h6 {[%emt 0:00:11]} Kg8 {[%emt 0:00:03]} 53. Re3 {[%emt 0:00:12]} Kf7 {[%emt 0:00:05]} 54. Rh3 {[%emt 0:00:13]} Kg8 {[%emt 0:00:01]} 55. Ke5 {[%emt 0:00:03]} Bd7 {[%emt 0:00:07]} 56. Kf6 {[%emt 0:00:21]} Kh7 {[%emt 0:00:10]} 57. Kf7 {[%emt 0:00:49]} Bxh3 {[%emt 0:00:07]} 58. e8=Q {[%emt 0:00:18]} Be6+ {[%emt 0:00:02]} 59. Kf6 {[%emt 0:00:05]} Bb3 {[%emt 0:00:12]} 60. Qe7+ {[%emt 0:00:26]} 1-0

[Event "6th Tulsi Lal Memorial NTCC 2080"]
[Site "Lalitpur"]
[Date "2024.01.10"]
[Round "5.7"]
[White "Duwal, Swornim"]
[Black "Thapa, Rishon"]
[Result "0-1"]
[ECO "A70"]
[WhiteElo "1390"]
[BlackElo "1738"]
[Annotator "NA RC COMBH"]
[PlyCount "80"]
[EventDate "2024.01.03"]
[EventType "team-tourn"]
[EventCountry "NEP"]
[SourceTitle "playchess.com"]
[Source "ChessBase"]
[SourceQuality "1"]
[TimeControl "5400+30"]

1. d4 {[%emt 0:01:33]} Nf6 {[%emt 1:31:00]} 2. c4 c5 {[%emt 0:00:00]} 3. d5 {[%emt 0:00:53]} e6 {[%emt 0:00:00]} 4. Nc3 {[%emt 0:00:18]} exd5 {[%emt 0:00:00]} 5. cxd5 {[%emt 0:00:07]} d6 {[%emt 0:00:00]} 6. e4 {[%emt 0:00:14]} g6 {[%emt 0:00:00]} 7. Nf3 {[%emt 0:01:11]} Bg7 {[%emt 0:00:00]} 8. Bf4 {[%emt 0:01:02]} O-O {[%emt 0:00:00]} 9. h3 {[%emt 0:02:38]} Re8 {[%emt 0:00:00]} 10. Bd3 {[%emt 0:01:25]} c4 {[%emt 0:00:00]} 11. Bc2 {[%emt 0:04:55]} b5 {[%emt 0:00:00]} 12. Nxb5 {[%emt 0:05:12]} Qa5+ {[%emt 0:00:00]} 13. Nc3 {[%emt 0:01:22]} Nxd5 {[%emt 0:00:00]} 14. Bd2 {[%emt 0:05:32]} Nxc3 {[%emt 0:00:00]} 15. bxc3 {[%emt 0:01:24]} Bxc3 {[%emt 0:00:00]} 16. O-O {[%emt 0:04:56]} Bxd2 {[%emt 0:00:00]} 17. Qxd2 {[%emt 0:01:16]} Qxd2 {[%emt 0:00:00]} 18. Nxd2 {[%emt 0:00:03]} Ba6 {[%emt 0:00:00]} 19. Nf3 {[%emt 0:06:29]} Nc6 {[%emt 0:00:00]} 20. Rfd1 {[%emt 0:05:12]} Red8 {[%emt 0:00:00]} 21. Rab1 {[%emt 0:02:37]} Rac8 {[%emt 0:00:00]} 22. Rd5 {[%emt 0:03:50]} c3 {[%emt 0:00:00]} 23. Nd4 {[%emt 0:08:51]} Bc4 {[%emt 0:00:00]} 24. Nxc6 {[%emt 0:01:17]} Rxc6 {[%emt 0:00:00]} 25. Ra5 {[%emt 0:01:43]} Ra6 {[%emt 0:00:00]} 26. Rxa6 {[%emt 0:02:58]} Bxa6 {[%emt 0:00:00]} 27. Bb3 {[%emt 0:01:45]} Kg7 {[%emt 0:00:00]} 28. f3 {[%emt 0:03:09]} f5 {[%emt 0:00:00]} 29. exf5 {[%emt 0:05:34]} gxf5 {[%emt 0:00:00]} 30. Rc1 {[%emt 0:00:30]} Rc8 {[%emt 0:00:00]} 31. f4 {[%emt 0:01:46]} Bb7 {[%emt 0:04:22]} 32. Kf2 {[%emt 0:03:47]} Be4 {[%emt 0:01:07]} 33. g3 {[%emt 0:05:15]} d5 {[%emt 0:00:19]} 34. Ke3 {[%emt 0:01:55]} a5 {[%emt 0:02:50]} 35. a4 {[%emt 0:01:44]} h5 {[%emt 0:00:57]} 36. h4 {[%emt 0:00:07]} Kf6 {[%emt 0:00:13]} 37. Kd4 {[%emt 0:00:44]} c2 {[%emt 0:00:27]} 38. Ba2 {[%emt 0:02:03]} Rb8 {[%emt 0:01:00]} 39. Kc3 {[%emt 0:00:56]} Rb1 {[%emt 0:02:05]} 40. Kd2 {[%emt 0:03:24]} Rb2 {[%emt 0:00:22]} 0-1

[Event "6th Tulsi Lal Memorial NTCC 2080"]
[Site "Lalitpur"]
[Date "2024.01.10"]
[Round "5.8"]
[White "Demanraura, Ayush"]
[Black "Shah, Abheek"]
[Result "1/2-1/2"]
[ECO "E64"]
[WhiteElo "1410"]
[BlackElo "1543"]
[Annotator "NA RC COMBH"]
[PlyCount "116"]
[EventDate "2024.01.03"]
[EventType "team-tourn"]
[EventCountry "NEP"]
[SourceTitle "playchess.com"]
[Source "ChessBase"]
[SourceQuality "1"]
[TimeControl "5400+30"]

1. d4 {[%emt 0:00:00]} Nf6 {[%emt 0:00:00]} 2. Nf3 {[%emt 0:00:06]} g6 {[%emt 0:00:11]} 3. g3 {[%emt 0:00:30]} Bg7 {[%emt 0:00:30]} 4. Bg2 O-O 5. c4 {[%emt 0:01:11]} d6 {[%emt 0:02:13]} 6. Nc3 {[%emt 0:00:43]} c5 {[%emt 0:00:25]} 7. e3 {[%emt 0:01:16]} Re8 {[%emt 0:03:39]} 8. O-O {[%emt 0:01:36]} Nc6 {[%emt 0:00:09]} 9. a3 {[%emt 0:03:38]} Bd7 {[%emt 0:02:35]} 10. dxc5 {[%emt 0:02:34]} dxc5 {[%emt 0:00:30]} 11. Qe2 {[%emt 0:03:56]} Qc8 {[%emt 0:01:26]} 12. Bd2 {[%emt 0:02:55]} Bh3 {[%emt 0:00:39]} 13. Rad1 {[%emt 0:02:00]} Bxg2 {[%emt 0:00:42]} 14. Kxg2 {[%emt 0:00:11]} e5 {[%emt 0:00:31]} 15. Nb5 {[%emt 0:18:17]} Ne4 {[%emt 0:04:11]} 16. Bc1 {[%emt 0:09:07]} a6 {[%emt 0:02:19]} 17. Nd6 {[%emt 0:04:49]} Nxd6 {[%emt 0:00:16]} 18. Rxd6 {[%emt 0:00:03]} e4 {[%emt 0:00:29]} 19. Ng5 {[%emt 0:06:14]} Qc7 {[%emt 0:00:16]} 20. Rfd1 {[%emt 0:02:23]} Qe7 {[%emt 0:00:27]} 21. h4 {[%emt 0:04:57]} Rad8 {[%emt 0:00:44]} 22. Rxd8 {[%emt 0:00:15]} Rxd8 {[%emt 0:00:05]} 23. Rxd8+ {[%emt 0:00:36]} Nxd8 {[%emt 0:00:05]} 24. Qc2 {[%emt 0:01:12]} f5 {[%emt 0:00:19]} 25. Bd2 {[%emt 0:02:03]} Ne6 {[%emt 0:02:08]} 26. Nxe6 {[%emt 0:01:02]} Qxe6 {[%emt 0:00:06]} 27. Bc3 {[%emt 0:00:10]} Qxc4 {[%emt 0:00:29]} 28. Qd2 {[%emt 0:03:42]} Qd3 {[%emt 0:00:21]} 29. Qc1 {[%emt 0:06:47]} Bxc3 {[%emt 0:02:01]} 30. bxc3 {[%emt 0:00:12]} b5 {[%emt 0:00:36]} 31. Qb2 {[%emt 0:03:05]} Qd5 {[%emt 0:00:57]} 32. a4 {[%emt 0:01:14]} Qc4 {[%emt 0:10:21]} 33. axb5 {[%emt 0:04:30]} Qxb5 {[%emt 0:11:21]} 34. Qd2 {[%emt 0:00:56]} Qc6 {[%emt 0:07:20]} 35. Qd8+ {[%emt 0:05:27]} Kf7 {[%emt 0:00:05]} 36. Qh8 {[%emt 0:00:29]} h5 {[%emt 0:00:26]} 37. Qh7+ {[%emt 0:01:27]} Kf6 {[%emt 0:02:21]} 38. Qg8 {[%emt 0:04:43]} Qd6 {[%emt 0:03:28]} 39. Qh8+ {[%emt 0:01:44]} Ke6 {[%emt 0:01:38]} 40. c4 {[%emt 0:00:33]} a5 {[%emt 0:04:59]} 41. Qe8+ {[%emt 0:01:03]} Kf6 {[%emt 0:02:11]} 42. Qb5 {[%emt 0:00:14]} Qc7 {[%emt 0:00:40]} 43. Qa6+ {[%emt 0:00:20]} Kf7 {[%emt 0:00:45]} 44. Kg1 {[%emt 0:00:05]} Kg7 {[%emt 0:00:55]} 45. Kg2 {[%emt 0:00:15]} Qf7 {[%emt 0:01:05]} 46. Kg1 {[%emt 0:00:48]} Kf8 {[%emt 0:04:21]} 47. Qc8+ {[%emt 0:00:38]} Kg7 {[%emt 0:00:21]} 48. Qxc5 {[%emt 0:00:02]} a4 {[%emt 0:00:05]} 49. Qb4 {[%emt 0:01:04]} Qa7 {[%emt 0:00:06]} 50. Qa3 {[%emt 0:00:26]} Kf7 {[%emt 0:00:29]} 51. c5 {[%emt 0:00:33]} Qa6 {[%emt 0:00:06]} 52. Kg2 {[%emt 0:01:00]} Qc4 {[%emt 0:00:03]} 53. Kg1 {[%emt 0:00:15]} Qb3 {[%emt 0:00:23]} 54. Qc1 {[%emt 0:00:23]} a3 {[%emt 0:02:05]} 55. c6 {[%emt 0:00:34]} a2 {[%emt 0:00:02]} 56. c7 {[%emt 0:00:13]} Qb1 {[%emt 0:00:01]} 57. c8=Q {[%emt 0:00:03]} a1=Q {[%emt 0:34:04]} 58. Qxb1 {[%emt 0:05:01]} Qxb1+ {[%emt 0:00:00]} 1/2-1/2

[Event "6th Tulsi Lal Memorial NTCC 2080"]
[Site "Lalitpur"]
[Date "2024.01.11"]
[Round "6.1"]
[White "Thapa, Krishna"]
[Black "Jaiswal, Rupesh"]
[Result "0-1"]
[ECO "A39"]
[WhiteElo "1944"]
[BlackElo "2009"]
[Annotator "TA"]
[PlyCount "88"]
[EventDate "2024.01.03"]
[EventType "team-tourn"]
[EventCountry "NEP"]
[SourceTitle "playchess.com"]
[Source "ChessBase"]
[SourceQuality "1"]
[TimeControl "5400+30"]

{[%evp 18,88,0,-4,-1,-7,-4,-14,0,0,0,-8,0,0,0,0,0,-44,-39,-54,-39,-46,-50,-44,-48,-73,-15,-153,0,0,0,0,43,45,63,64,117,0,61,0,0,0,9,-69,-66,-54,-64,-83,0,0,0,0,0,8,73,0,0,2,18,-259,-161,-161,-114,-114,-114,-111,-114,-112,-112,-845,-831,-29973,-12119]} 1. d4 {[%emt 0:00:02]} Nf6 {[%emt 0:02:52]} 2. Nf3 {[%emt 0:00:15]} g6 {[%emt 0:01:25]} 3. g3 {[%emt 0:00:09]} Bg7 4. c4 {[%emt 0:00:04]} O-O {[%emt 0:00:07]} 5. Bg2 {[%emt 0:00:03]} d6 {[%emt 0:00:03]} 6. Nc3 {[%emt 0:00:16]} c5 {[%emt 0:00:06]} 7. O-O {[%emt 0:01:07]} Nc6 {[%emt 0:00:01]} 8. e4 {[%emt 0:06:22]} cxd4 {[%emt 0:18:50]} 9. Nxd4 {[%emt 0:00:09]} Nxd4 {[%emt 0:00:01]} 10. Qxd4 {[%emt 0:00:37]} Be6 {[%emt 0:00:01][%cal Of6d5]} 11. Qd3 {[%emt 0:06:21]} Rc8 {[%emt 0:06:41]} 12. Nd5 {[%emt 0:09:25]} (12. b3 {vereinfacht} d5 13. exd5 Nxd5 14. Bxd5 Bxd5 15. Qxd5 Bxc3 16. Qxd8 Rfxd8 17. Rb1) 12... Ng4 {[%emt 0:08:17] Die Stellung ist ausgeglichen.} 13. Qb3 {[%emt 0:05:02]} Qd7 {[%emt 0:03:37]} 14. Bg5 {[%emt 0:03:17]} Rfe8 {[%emt 0:00:45]} 15. Rac1 {[%emt 0:02:24]} Ne5 {[%emt 0:12:38]} 16. Rfd1 $1 {[%emt 0:07:53]} b6 {[%emt 0:02:54]} 17. f4 {[%emt 0:26:53]} Nc6 {[%emt 0:02:17]} 18. e5 {[%emt 0:01:36]} h6 {[%emt 0:04:00]} 19. Bh4 {[%emt 0:01:45]} g5 {[%emt 0:00:08]} 20. fxg5 {[%emt 0:00:25]} Nxe5 {[%emt 0:02:49]} 21. Rf1 {[%emt 0:05:03]} Ng6 {[%emt 0:07:39]} (21... Rc5 $17 {...hxg5 ist eine echte Drohung.} 22. Qd1 b5 (22... Nxc4 23. gxh6 Bxb2 24. Rb1 $17) (22... Rxc4 23. Rxc4 Nxc4 24. gxh6 $16) 23. cxb5 Qxb5 24. Rxc5 Qxc5+ 25. Kh1 Ng6) 22. Qe3 {[%emt 0:00:43]} (22. gxh6 $11 Bxh6 23. Rce1) 22... h5 $2 {[%emt 0:04:21]} (22... Bxb2 $17 23. Rb1 Be5) 23. b3 $11 {[%emt 0:01:08]} b5 {[%emt 0:00:56]} 24. cxb5 {[%emt 0:04:36][%cal Oc1c6]} Qxb5 {[%emt 0:08:47]} 25. Nc7 {[%emt 0:01:54]} Rxc7 {[%emt 0:00:07]} 26. Rxc7 {[%emt 0:00:03]} Qb4 {[%emt 0:00:04]} (26... d5 $1 $14) 27. Rb7 {[%emt 0:04:38]} (27. Rxa7 $2 Bd4 $19) (27. Kh1 $1 $16) 27... Qg4 {[%emt 0:04:06]} (27... Qd4 $11 28. Qxd4 Bxd4+ 29. Kh1 Rc8) 28. Qf3 {[%emt 0:03:55]} (28. Rxa7 $2 Bd4 $19 (28... Nxh4 $2 29. Ra4 $19) (28... Nxh4 $2 29. Ra4 $19)) (28. Kh1 $14) 28... Bd4+ {[%emt 0:01:16]} 29. Kh1 {[%emt 0:00:10]} Rc8 {[%emt 0:02:25]} 30. Rb4 {[%emt 0:01:55]} ({Besser ist} 30. Qd3 $11 Rc3 31. Qd2) 30... Qxf3 $15 {[%emt 0:01:14]} 31. Bxf3 {[%emt 0:00:42]} Bb6 {[%emt 0:00:49]} 32. Re4 {[%emt 0:01:18][%cal Oe4e6]} (32. Bxh5 $2 Rc1 33. Kg2 (33. Rxc1 $2 {führt zum Matt.} Bd5+) (33. Rxb6 $2 Rxf1+ 34. Kg2 Bh3+ 35. Kxh3 axb6 $19) 33... Rc2+ (33... Bd5+ $2 34. Bf3 $19) 34. Kh1 Ne5 $19 (34... Rxa2 $2 35. Rxb6 Bd5+ 36. Bf3 $19) (34... Bh3 $2 35. Rxb6 axb6 36. Re1 $19)) 32... Bd5 {[%emt 0:02:42]} (32... Ne5 $1 $17 {Zielt auf ...Rc2 ab.} 33. g6 (33. Bxh5 $2 {zu gefräßig.} Bd5 $19) 33... f6) 33. Re2 $11 {[%emt 0:00:26] Wehrt Rc2 ab} Bxf3+ {[%emt 0:00:19]} 34. Rxf3 {[%emt 0:00:08]} d5 {[%emt 0:00:11]} 35. Kg2 {[%emt 0:01:38]} e5 {[%emt 0:00:05]} (35... Kg7 $11 {hält das Gleichgewicht.}) 36. Kh3 {[%emt 0:04:01]} (36. Rd3 $16) 36... e4 {[%emt 0:01:55]} 37. Rf5 {[%emt 0:00:25]} Rd8 {[%emt 0:00:37] Und ...e3 würde nun gewinnen.} 38. g4 $2 {[%emt 0:02:07][%mdl 8192]} (38. a4 $11 {und Weiss steht sicher.}) 38... hxg4+ {[%emt 0:00:07]} 39. Kxg4 {[%emt 0:00:06]} Nxh4 {[%emt 0:00:35]} ({Vorzuziehen ist} 39... e3 $19 {...Nxh4 wäre nun fies.} 40. Bg3 d4) 40. Kxh4 $19 {[%emt 0:00:01] [#] KRR-KRB} e3 $1 {[%emt 0:00:17]} 41. g6 {[%emt 0:00:44] [#]} f6 {[%emt 0:01:06]} 42. Rxf6 {[%emt 0:01:09]} d4 {[%emt 0:00:05]} 43. Rf3 $2 {[%emt 0:00:30][%mdl 8192]} (43. Re1 $17) 43... d3 {[%emt 0:00:15]} 44. Rfxe3 {[%emt 0:00:24]} Bxe3 {[%emt 0:00:17] Gewichteter Fehlerwert: Weiß=0.75/Schwarz=0.24 (präzise) .  Verlustzug:     	Weiß=2     	---        Fehler:       	Weiß=5     	Schwarz=7     Ungenau:       	Weiß=2     	Schwarz=2     OK:         	Weiß=10    	Schwarz=13    Bester:       	Weiß=3     	Schwarz=3     Stark:        	Weiß=1     	Schwarz=1} (44... dxe2 $2 45. Rxe2 Kg7 46. Rg2 $19) 0-1